[Event "*** SCC Grand Prix: Titled Tuesday Blitz"]
[Site "Chess.com"]
[Date "2020.08.25"]
[Round "1"]
[White "Sophist4Life"]
[Black "German_Bazeev"]
[Result "1-0"]
[WhiteElo "2435"]
[BlackElo "2833"]
[TimeControl "180+1"]
[EndTime "10:08:27 PDT"]
[Termination "Sophist4Life won by resignation"]

1. d4 {[%clk 0:02:58.8]} 1... Nf6 {[%clk 0:02:59.5]} 2. c4 {[%clk 0:02:58.9]}
2... c6 {[%clk 0:02:59.4]} 3. Nc3 {[%clk 0:02:58.9]} 3... d5 {[%clk 0:02:59.8]}
4. Nf3 {[%clk 0:02:58.5]} 4... dxc4 {[%clk 0:02:58.8]} 5. a4 {[%clk 0:02:57.3]}
5... Bf5 {[%clk 0:02:47.3]} 6. e3 {[%clk 0:02:57]} 6... e6 {[%clk 0:02:44.4]} 7.
Ne5 {[%clk 0:02:57]} 7... Nbd7 {[%clk 0:02:36.8]} 8. Nxd7 {[%clk 0:02:56.9]}
8... Qxd7 {[%clk 0:02:29.4]} 9. Bxc4 {[%clk 0:02:56.9]} 9... a5 {[%clk
0:02:29.4]} 10. O-O {[%clk 0:02:55.8]} 10... Bb4 {[%clk 0:02:29]} 11. f3 {[%clk
0:02:56]} 11... O-O {[%clk 0:02:26.3]} 12. e4 {[%clk 0:02:56.1]} 12... Bg6
{[%clk 0:02:26.3]} 13. Be3 {[%clk 0:02:56]} 13... Rad8 {[%clk 0:02:24.3]} 14.
Qb3 {[%clk 0:02:55.3]} 14... Qe7 {[%clk 0:02:15.6]} 15. Rad1 {[%clk 0:02:53.5]}
15... h6 {[%clk 0:02:13.3]} 16. Kh1 {[%clk 0:02:52]} 16... e5 {[%clk 0:02:00.5]}
17. d5 {[%clk 0:02:46.4]} 17... Nd7 {[%clk 0:01:58.9]} 18. dxc6 {[%clk
0:02:45.4]} 18... bxc6 {[%clk 0:01:59.8]} 19. Ne2 {[%clk 0:02:39.1]} 19... Nc5
{[%clk 0:01:59.6]} 20. Qc2 {[%clk 0:02:38.6]} 20... Ne6 {[%clk 0:01:52.1]} 21.
Bxe6 {[%clk 0:02:34.7]} 21... Qxe6 {[%clk 0:01:49.6]} 22. g4 {[%clk 0:02:25.8]}
22... h5 {[%clk 0:01:43.7]} 23. h3 {[%clk 0:02:24.8]} 23... Qf6 {[%clk
0:01:33.1]} 24. Ng3 {[%clk 0:02:13.9]} 24... Rxd1 {[%clk 0:01:27.1]} 25. Qxd1
{[%clk 0:02:11.6]} 25... Rd8 {[%clk 0:01:25]} 26. Qc2 {[%clk 0:02:11.4]} 26...
c5 {[%clk 0:01:12.1]} 27. Kg2 {[%clk 0:01:43.3]} 27... Qe6 {[%clk 0:00:49.1]}
28. gxh5 {[%clk 0:01:36]} 28... Bh7 {[%clk 0:00:48.9]} 29. h6 {[%clk 0:01:34.4]}
29... gxh6 {[%clk 0:00:48.5]} 30. Rd1 {[%clk 0:01:26.8]} 30... Rc8 {[%clk
0:00:48.5]} 31. Rd5 {[%clk 0:01:25.3]} 31... c4 {[%clk 0:00:48.6]} 32. Qd1
{[%clk 0:01:16.4]} 32... Be7 {[%clk 0:00:46.4]} 33. Rxa5 {[%clk 0:01:08.1]}
33... Rb8 {[%clk 0:00:36.8]} 34. Rb5 {[%clk 0:01:05.6]} 34... Rd8 {[%clk
0:00:31.6]} 35. Qc2 {[%clk 0:01:05.5]} 35... Kh8 {[%clk 0:00:29.2]} 36. Rb6
{[%clk 0:01:03.2]} 36... Bd6 {[%clk 0:00:21.8]} 37. Bc5 {[%clk 0:00:59.8]} 37...
Qe7 {[%clk 0:00:16.5]} 38. Rxd6 {[%clk 0:00:51.5]} 38... Rxd6 {[%clk 0:00:16.7]}
39. Bxd6 {[%clk 0:00:49.8]} 39... Qxd6 {[%clk 0:00:16.9]} 40. Qxc4 {[%clk
0:00:46.1]} 40... Qd2+ {[%clk 0:00:16.9]} 41. Qe2 {[%clk 0:00:46.6]} 41... Qb4
{[%clk 0:00:16.4]} 42. Qc2 {[%clk 0:00:43.9]} 42... Bg6 {[%clk 0:00:15.8]} 43.
b3 {[%clk 0:00:43.9]} 43... h5 {[%clk 0:00:15.8]} 44. Ne2 {[%clk 0:00:42]} 44...
h4 {[%clk 0:00:15.6]} 45. Qc3 {[%clk 0:00:40.7]} 45... Qe7 {[%clk 0:00:15.4]}
46. Qe3 {[%clk 0:00:34.1]} 46... Kh7 {[%clk 0:00:14.9]} 47. Qd2 {[%clk
0:00:30.6]} 47... Qa3 {[%clk 0:00:13.5]} 48. Nc1 {[%clk 0:00:26.6]} 48... f6
{[%clk 0:00:11.5]} 49. a5 {[%clk 0:00:25]} 49... Bh5 {[%clk 0:00:09.9]} 50. Qc3
{[%clk 0:00:21.9]} 50... Qf8 {[%clk 0:00:08.9]} 51. Ne2 {[%clk 0:00:17.8]} 51...
Qg7+ {[%clk 0:00:08.7]} 52. Kf2 {[%clk 0:00:17.9]} 52... Qa7+ {[%clk 0:00:08.4]}
53. Ke1 {[%clk 0:00:15.4]} 53... Bf7 {[%clk 0:00:09]} 54. b4 {[%clk 0:00:14.9]}
54... Be6 {[%clk 0:00:09]} 55. b5 {[%clk 0:00:14]} 55... Bxh3 {[%clk 0:00:09.2]}
56. b6 {[%clk 0:00:13.8]} 56... Qa6 {[%clk 0:00:09.5]} 57. Qc7+ {[%clk
0:00:09.9]} 57... Kh6 {[%clk 0:00:09.2]} 58. b7 {[%clk 0:00:10.2]} 58... Bf1
{[%clk 0:00:05.1]} 59. Kxf1 {[%clk 0:00:07.6]} 59... Qd3 {[%clk 0:00:05.8]} 60.
b8=Q {[%clk 0:00:07]} 60... Qxf3+ {[%clk 0:00:06.3]} 61. Ke1 {[%clk 0:00:07]}
61... Qxe4 {[%clk 0:00:06.4]} 62. Qcd8 {[%clk 0:00:06]} 1-0

[Event "*** SCC Grand Prix: Titled Tuesday Blitz"]
[Site "Chess.com"]
[Date "2020.08.25"]
[Round "1"]
[White "alexrustemov"]
[Black "Tactictic"]
[Result "0-1"]
[WhiteElo "2657"]
[BlackElo "2357"]
[TimeControl "180+1"]
[EndTime "10:08:28 PDT"]
[Termination "Tactictic won on time"]

1. Nf3 {[%clk 0:02:59.1]} 1... d5 {[%clk 0:02:59.3]} 2. d4 {[%clk 0:02:58.5]}
2... Nf6 {[%clk 0:02:59.2]} 3. c4 {[%clk 0:02:58.4]} 3... e6 {[%clk 0:02:59]} 4.
Nc3 {[%clk 0:02:58.5]} 4... Be7 {[%clk 0:02:56.2]} 5. Bg5 {[%clk 0:02:58.1]}
5... h6 {[%clk 0:02:56.5]} 6. Bh4 {[%clk 0:02:57.8]} 6... O-O {[%clk 0:02:56.2]}
7. e3 {[%clk 0:02:58.3]} 7... b6 {[%clk 0:02:55.7]} 8. Bd3 {[%clk 0:02:58.1]}
8... Bb7 {[%clk 0:02:53.7]} 9. O-O {[%clk 0:02:58.6]} 9... Nbd7 {[%clk 0:02:51]}
10. Qe2 {[%clk 0:02:59]} 10... c5 {[%clk 0:02:50.1]} 11. Rfd1 {[%clk 0:02:59.1]}
11... Ne4 {[%clk 0:02:41.1]} 12. Bg3 {[%clk 0:02:55.7]} 12... Nxg3 {[%clk
0:02:20.5]} 13. hxg3 {[%clk 0:02:56.6]} 13... Qc7 {[%clk 0:02:18.1]} 14. Rac1
{[%clk 0:02:50.5]} 14... Rac8 {[%clk 0:02:16.4]} 15. cxd5 {[%clk 0:02:47.9]}
15... exd5 {[%clk 0:02:14.6]} 16. Ba6 {[%clk 0:02:48.3]} 16... Rfd8 {[%clk
0:02:06.6]} 17. Bxb7 {[%clk 0:02:40.6]} 17... Qxb7 {[%clk 0:02:04.6]} 18. dxc5
{[%clk 0:02:40.7]} 18... Nxc5 {[%clk 0:02:01.9]} 19. Nd4 {[%clk 0:02:24.2]}
19... Ne4 {[%clk 0:01:57.7]} 20. Nxe4 {[%clk 0:01:57]} 20... dxe4 {[%clk
0:01:55.3]} 21. Nf5 {[%clk 0:01:57.5]} 21... Bf6 {[%clk 0:01:43]} 22. Qg4 {[%clk
0:01:15.7]} 22... Kh7 {[%clk 0:01:27.5]} 23. b3 {[%clk 0:01:01.6]} 23... g6
{[%clk 0:01:19.4]} 24. Rxc8 {[%clk 0:00:52.6]} 24... Qxc8 {[%clk 0:01:04.2]} 25.
Rxd8 {[%clk 0:00:48.7]} 25... Bxd8 {[%clk 0:00:56.4]} 26. Nxh6 {[%clk
0:00:44.9]} 26... Qc1+ {[%clk 0:00:56.2]} 27. Kh2 {[%clk 0:00:45.3]} 27... Kxh6
{[%clk 0:00:56.1]} 28. Qxe4 {[%clk 0:00:45.8]} 28... Bf6 {[%clk 0:00:48.7]} 29.
Qb7 {[%clk 0:00:43.6]} 29... Kg7 {[%clk 0:00:44.5]} 30. Qxa7 {[%clk 0:00:42.8]}
30... Qc5 {[%clk 0:00:44.9]} 31. Qa4 {[%clk 0:00:38.9]} 31... b5 {[%clk
0:00:39.1]} 32. Qe4 {[%clk 0:00:35.6]} 32... b4 {[%clk 0:00:38.7]} 33. f4 {[%clk
0:00:31.8]} 33... Bc3 {[%clk 0:00:37.9]} 34. Kg1 {[%clk 0:00:29.2]} 34... Qh5
{[%clk 0:00:24.9]} 35. Qd3 {[%clk 0:00:27.2]} 35... Qa5 {[%clk 0:00:20.7]} 36.
Qe2 {[%clk 0:00:25.2]} 36... Qa3 {[%clk 0:00:19.8]} 37. Kf2 {[%clk 0:00:25.2]}
37... Qc1 {[%clk 0:00:19.8]} 38. g4 {[%clk 0:00:24.6]} 38... f5 {[%clk
0:00:17.4]} 39. g5 {[%clk 0:00:24.6]} 39... Qd2 {[%clk 0:00:16]} 40. Qxd2 {[%clk
0:00:22.1]} 40... Bxd2 {[%clk 0:00:16.9]} 41. Kf3 {[%clk 0:00:22.7]} 41... Kf7
{[%clk 0:00:16.1]} 42. e4 {[%clk 0:00:21.1]} 42... Ke6 {[%clk 0:00:13.6]} 43. g4
{[%clk 0:00:18.7]} 43... fxe4+ {[%clk 0:00:10.2]} 44. Kxe4 {[%clk 0:00:18.6]}
44... Kd6 {[%clk 0:00:10.2]} 45. f5 {[%clk 0:00:12.6]} 45... Bxg5 {[%clk
0:00:10]} 46. fxg6 {[%clk 0:00:11.7]} 46... Ke6 {[%clk 0:00:10.3]} 47. Kd4
{[%clk 0:00:11.1]} 47... Bc1 {[%clk 0:00:09.6]} 48. Ke4 {[%clk 0:00:05.7]} 48...
Kf6 {[%clk 0:00:09.4]} 49. Kd3 {[%clk 0:00:05.6]} 49... Kxg6 {[%clk 0:00:08.9]}
50. Kc2 {[%clk 0:00:05.7]} 50... Ba3 {[%clk 0:00:09]} 51. Kd3 {[%clk 0:00:05.6]}
51... Kg5 {[%clk 0:00:09.4]} 52. Kc2 {[%clk 0:00:05.8]} 52... Kxg4 {[%clk
0:00:09.3]} 53. Kb1 {[%clk 0:00:06.7]} 53... Kf4 {[%clk 0:00:09.9]} 54. Kc2
{[%clk 0:00:07.3]} 54... Ke4 {[%clk 0:00:10.5]} 55. Kb1 {[%clk 0:00:07.7]} 55...
Kd3 {[%clk 0:00:10.8]} 56. Ka1 {[%clk 0:00:08.4]} 56... Kc3 {[%clk 0:00:10.2]}
57. Kb1 {[%clk 0:00:08.8]} 57... Bb2 {[%clk 0:00:10.3]} 58. a4 {[%clk
0:00:05.9]} 58... bxa3 {[%clk 0:00:10]} 59. Ka2 {[%clk 0:00:04.3]} 59... Kb4
{[%clk 0:00:09.6]} 60. Kb1 {[%clk 0:00:03.7]} 60... Bf6 {[%clk 0:00:09.7]} 61.
Ka2 {[%clk 0:00:03.7]} 61... Be5 {[%clk 0:00:10.1]} 62. Kb1 {[%clk 0:00:03.7]}
62... Kxb3 {[%clk 0:00:10.6]} 0-1

[Event "*** SCC Grand Prix: Titled Tuesday Blitz"]
[Site "Chess.com"]
[Date "2020.08.25"]
[Round "1"]
[White "Chess_Dog06"]
[Black "skiff134"]
[Result "1/2-1/2"]
[WhiteElo "2315"]
[BlackElo "2610"]
[TimeControl "180+1"]
[EndTime "10:08:29 PDT"]
[Termination "Game drawn by agreement"]

1. Nf3 {[%clk 0:03:00.9]} 1... d5 {[%clk 0:02:59.8]} 2. g3 {[%clk 0:03:00.6]}
2... Nc6 {[%clk 0:03:00]} 3. d4 {[%clk 0:02:59.8]} 3... Bf5 {[%clk 0:03:00.2]}
4. Bg2 {[%clk 0:02:59.2]} 4... Qd7 {[%clk 0:03:00.6]} 5. O-O {[%clk 0:02:55.5]}
5... Bh3 {[%clk 0:02:58]} 6. c4 {[%clk 0:02:53.4]} 6... dxc4 {[%clk 0:02:54.8]}
7. d5 {[%clk 0:02:46.8]} 7... O-O-O {[%clk 0:02:42.6]} 8. Nc3 {[%clk 0:02:24.3]}
8... Bxg2 {[%clk 0:02:39.5]} 9. Kxg2 {[%clk 0:02:24.3]} 9... Nb4 {[%clk
0:02:36]} 10. e4 {[%clk 0:02:20]} 10... e6 {[%clk 0:02:29.4]} 11. a3 {[%clk
0:02:05.4]} 11... Nd3 {[%clk 0:02:27.8]} 12. Be3 {[%clk 0:02:05.2]} 12... Nf6
{[%clk 0:02:15.2]} 13. dxe6 {[%clk 0:02:02.7]} 13... Qxe6 {[%clk 0:02:14.1]} 14.
Qa4 {[%clk 0:02:02.1]} 14... Nxe4 {[%clk 0:02:03.2]} 15. Qxa7 {[%clk 0:01:41.5]}
15... Nxc3 {[%clk 0:02:02.5]} 16. bxc3 {[%clk 0:01:42.4]} 16... Qc6 {[%clk
0:01:57.1]} 17. Rab1 {[%clk 0:01:10.3]} 17... Ne5 {[%clk 0:01:35.3]} 18. Qa8+
{[%clk 0:01:10]} 18... Kd7 {[%clk 0:01:35.3]} 19. Qxb7 {[%clk 0:01:10.9]} 19...
Nxf3 {[%clk 0:01:23.8]} 20. Rfd1+ {[%clk 0:00:34]} 20... Bd6 {[%clk 0:01:15.2]}
21. Qxc6+ {[%clk 0:00:28.8]} 21... Kxc6 {[%clk 0:01:15.4]} 22. Kxf3 {[%clk
0:00:29.7]} 22... Ra8 {[%clk 0:01:15.9]} 23. Rd4 {[%clk 0:00:25.6]} 23... Ra4
{[%clk 0:01:16.5]} 24. Rg4 {[%clk 0:00:17.6]} 24... g6 {[%clk 0:01:16.4]} 25.
Rd1 {[%clk 0:00:12.5]} 25... h5 {[%clk 0:01:09]} 26. Rgd4 {[%clk 0:00:11.8]}
26... Rb8 {[%clk 0:01:06.1]} 27. R4d2 {[%clk 0:00:09.7]} 27... Rb3 {[%clk
0:01:05.7]} 28. Bd4 {[%clk 0:00:10.1]} 28... Raxa3 {[%clk 0:01:03.7]} 29. Re2
{[%clk 0:00:10.2]} 29... Bb4 {[%clk 0:01:02.5]} 30. Re5 {[%clk 0:00:05.8]} 30...
Bxc3 {[%clk 0:01:00]} 31. Rc5+ {[%clk 0:00:05.5]} 31... Kb7 {[%clk 0:00:58.9]}
32. Kg2 {[%clk 0:00:04.7]} 32... Bxd4 {[%clk 0:00:49.8]} 33. Rxd4 {[%clk
0:00:05.6]} 33... Rc3 {[%clk 0:00:34.6]} 34. Rd7 {[%clk 0:00:04.3]} 34... Rab3
{[%clk 0:00:25.9]} 35. Rdxc7+ {[%clk 0:00:03.7]} 35... Ka6 {[%clk 0:00:26.1]}
36. Rxc4 {[%clk 0:00:04.6]} 36... Rxc4 {[%clk 0:00:26.4]} 37. Rxc4 {[%clk
0:00:05.5]} 37... Kb6 {[%clk 0:00:27.3]} 38. Rf4 {[%clk 0:00:05.4]} 38... f5
{[%clk 0:00:27.1]} 39. h4 {[%clk 0:00:05.8]} 39... Kc5 {[%clk 0:00:27]} 40. Ra4
{[%clk 0:00:05.5]} 40... Rb6 {[%clk 0:00:26.9]} 41. Ra7 {[%clk 0:00:05.4]} 41...
Kd4 {[%clk 0:00:27.2]} 42. Kf3 {[%clk 0:00:05.5]} 42... Ke5 {[%clk 0:00:27.1]}
43. Ra5+ {[%clk 0:00:05.9]} 43... Kf6 {[%clk 0:00:27]} 44. Ra3 {[%clk
0:00:06.2]} 44... Ke5 {[%clk 0:00:26.9]} 45. Re3+ {[%clk 0:00:06.6]} 45... Kf6
{[%clk 0:00:27.2]} 46. Rc3 {[%clk 0:00:07.1]} 46... g5 {[%clk 0:00:27.6]} 47.
hxg5+ {[%clk 0:00:07.1]} 47... Kxg5 {[%clk 0:00:27.9]} 48. Kg2 {[%clk 0:00:08]}
48... Rb2 {[%clk 0:00:27.8]} 49. Rc8 {[%clk 0:00:07.5]} 49... h4 {[%clk
0:00:28]} 50. Rg8+ {[%clk 0:00:07.7]} 50... Kf6 {[%clk 0:00:28.5]} 51. gxh4
{[%clk 0:00:07.9]} 51... Rb3 {[%clk 0:00:29.1]} 52. h5 {[%clk 0:00:06.5]} 52...
Rb4 {[%clk 0:00:28.3]} 53. Kg3 {[%clk 0:00:05.2]} 53... Kf7 {[%clk 0:00:27]} 54.
Rg5 {[%clk 0:00:04.1]} 54... Kf6 {[%clk 0:00:27.4]} 55. Rg6+ {[%clk 0:00:04.4]}
55... Kf7 {[%clk 0:00:27.2]} 56. Ra6 {[%clk 0:00:04.6]} 56... Kg7 {[%clk
0:00:26.7]} 57. h6+ {[%clk 0:00:04.1]} 57... Kh7 {[%clk 0:00:27.1]} 58. Rf6
{[%clk 0:00:03.7]} 58... Rg4+ {[%clk 0:00:24.4]} 59. Kf3 {[%clk 0:00:03.6]}
59... Rh4 {[%clk 0:00:23.1]} 60. Rxf5 {[%clk 0:00:03.2]} 60... Kxh6 {[%clk
0:00:23.7]} 61. Rf4 {[%clk 0:00:03.2]} 61... Rh5 {[%clk 0:00:23.9]} 62. Ke4
{[%clk 0:00:03.5]} 62... Kg6 {[%clk 0:00:23.5]} 63. Kf3 {[%clk 0:00:04.4]} 63...
Ra5 {[%clk 0:00:20.6]} 64. Rg4+ {[%clk 0:00:04.8]} 64... Kf5 {[%clk 0:00:20.5]}
65. Rf4+ {[%clk 0:00:05.1]} 65... Kg5 {[%clk 0:00:21]} 66. Rb4 {[%clk
0:00:05.5]} 66... Kf6 {[%clk 0:00:20.4]} 67. Kg2 {[%clk 0:00:05.7]} 67... Kg6
{[%clk 0:00:20.3]} 68. Rb6+ {[%clk 0:00:06.2]} 68... Kf7 {[%clk 0:00:20.6]} 69.
f4 {[%clk 0:00:06.5]} 69... Ra3 {[%clk 0:00:20]} 70. Rb5 {[%clk 0:00:05.7]}
70... Kf6 {[%clk 0:00:20]} 71. Rg5 {[%clk 0:00:05.6]} 71... Rb3 {[%clk
0:00:19.8]} 72. Rg3 {[%clk 0:00:05.8]} 72... Rxg3+ {[%clk 0:00:19.9]} 73. Kxg3
{[%clk 0:00:06.7]} 73... Kf5 {[%clk 0:00:20.6]} 74. Kf3 {[%clk 0:00:07.2]} 74...
Kf6 {[%clk 0:00:21.2]} 75. Kg4 {[%clk 0:00:08.1]} 75... Kg6 {[%clk 0:00:21.6]}
76. f5+ {[%clk 0:00:08.3]} 1/2-1/2

[Event "*** SCC Grand Prix: Titled Tuesday Blitz"]
[Site "Chess.com"]
[Date "2020.08.25"]
[Round "1"]
[White "SlavenPastar"]
[Black "mishanick"]
[Result "0-1"]
[WhiteElo "2448"]
[BlackElo "2970"]
[TimeControl "180+1"]
[EndTime "10:08:30 PDT"]
[Termination "mishanick won by resignation"]

1. d4 {[%clk 0:02:54.3]} 1... Nf6 {[%clk 0:02:58.5]} 2. c4 {[%clk 0:02:50.6]}
2... e6 {[%clk 0:02:58.4]} 3. Nc3 {[%clk 0:02:50.8]} 3... Bb4 {[%clk 0:02:57.9]}
4. e3 {[%clk 0:02:51.4]} 4... O-O {[%clk 0:02:55.9]} 5. Bd3 {[%clk 0:02:52]}
5... c5 {[%clk 0:02:55.1]} 6. Ne2 {[%clk 0:02:50.9]} 6... cxd4 {[%clk
0:02:53.2]} 7. exd4 {[%clk 0:02:51.8]} 7... d5 {[%clk 0:02:53.8]} 8. cxd5 {[%clk
0:02:51.4]} 8... Qxd5 {[%clk 0:02:54.3]} 9. O-O {[%clk 0:02:50.2]} 9... Qh5
{[%clk 0:02:54.5]} 10. Nf4 {[%clk 0:02:37.8]} 10... Qxd1 {[%clk 0:02:48.6]} 11.
Rxd1 {[%clk 0:02:38.7]} 11... Rd8 {[%clk 0:02:47.7]} 12. a3 {[%clk 0:02:33.4]}
12... Ba5 {[%clk 0:02:45.5]} 13. Be3 {[%clk 0:02:19.8]} 13... Nc6 {[%clk
0:02:40.3]} 14. Bb5 {[%clk 0:02:13]} 14... Ne7 {[%clk 0:02:37.6]} 15. h3 {[%clk
0:01:44.6]} 15... Bd7 {[%clk 0:02:32.9]} 16. b4 {[%clk 0:01:36.6]} 16... Bc7
{[%clk 0:02:32.1]} 17. Nd3 {[%clk 0:01:23.4]} 17... b6 {[%clk 0:02:12.8]} 18.
Bg5 {[%clk 0:01:20.3]} 18... a6 {[%clk 0:01:56.9]} 19. Bxd7 {[%clk 0:01:17.7]}
19... Rxd7 {[%clk 0:01:57.8]} 20. Ne5 {[%clk 0:01:18]} 20... Rdd8 {[%clk
0:01:46.7]} 21. f3 {[%clk 0:01:13.9]} 21... h6 {[%clk 0:01:46.4]} 22. Bh4 {[%clk
0:01:10.7]} 22... g5 {[%clk 0:01:40.3]} 23. Bf2 {[%clk 0:01:09.6]} 23... Rac8
{[%clk 0:01:40]} 24. Rac1 {[%clk 0:01:08]} 24... Bxe5 {[%clk 0:01:26.1]} 25.
dxe5 {[%clk 0:01:08.9]} 25... Rxd1+ {[%clk 0:01:26]} 26. Rxd1 {[%clk 0:01:06.9]}
26... Rxc3 {[%clk 0:01:26.3]} 27. exf6 {[%clk 0:01:04]} 27... Nd5 {[%clk
0:01:25.9]} 28. a4 {[%clk 0:01:02.5]} 28... Rc4 {[%clk 0:01:18.6]} 29. a5 {[%clk
0:00:55.4]} 29... b5 {[%clk 0:01:10.1]} 30. Bc5 {[%clk 0:00:53.1]} 30... Kh7
{[%clk 0:01:10.1]} 31. Be7 {[%clk 0:00:40.8]} 31... Kg6 {[%clk 0:01:08.2]} 32.
Kf2 {[%clk 0:00:39.9]} 32... h5 {[%clk 0:01:07.4]} 33. g3 {[%clk 0:00:38.7]}
33... g4 {[%clk 0:01:05.5]} 34. fxg4 {[%clk 0:00:37.1]} 34... hxg4 {[%clk
0:01:06.4]} 35. hxg4 {[%clk 0:00:37.2]} 35... Rxg4 {[%clk 0:01:05.7]} 36. Kf3
{[%clk 0:00:37.7]} 36... Rc4 {[%clk 0:01:05.6]} 37. Rd3 {[%clk 0:00:34.5]} 37...
Nxf6 {[%clk 0:01:03.4]} 38. Bxf6 {[%clk 0:00:34.2]} 38... Kxf6 {[%clk
0:01:04.3]} 39. Rd6 {[%clk 0:00:34.6]} 39... Rxb4 {[%clk 0:01:04.4]} 40. Rxa6
{[%clk 0:00:34.5]} 40... Kf5 {[%clk 0:01:05]} 41. Rd6 {[%clk 0:00:20.4]} 41...
Rb3+ {[%clk 0:01:04]} 42. Kf2 {[%clk 0:00:19.9]} 42... Ra3 {[%clk 0:01:04]} 43.
a6 {[%clk 0:00:18.8]} 43... e5 {[%clk 0:01:03.4]} 44. Rb6 {[%clk 0:00:18.8]}
44... Ke4 {[%clk 0:01:01.8]} 45. Rxb5 {[%clk 0:00:15]} 45... Ra2+ {[%clk
0:01:02]} 46. Kf1 {[%clk 0:00:11.9]} 46... Rxa6 {[%clk 0:01:02.9]} 47. Kg2
{[%clk 0:00:10.4]} 47... Ra4 {[%clk 0:01:02.9]} 48. Rb6 {[%clk 0:00:07.2]} 48...
f5 {[%clk 0:01:03]} 49. Re6 {[%clk 0:00:07.4]} 49... Ra2+ {[%clk 0:00:59.6]} 50.
Kh3 {[%clk 0:00:07.4]} 50... Ra8 {[%clk 0:01:00.1]} 51. Rf6 {[%clk 0:00:03.8]}
51... Rg8 {[%clk 0:00:54]} 52. Rf7 {[%clk 0:00:03.7]} 52... Rg5 {[%clk
0:00:52.6]} 53. Kh4 {[%clk 0:00:03.7]} 53... Rg6 {[%clk 0:00:52.7]} 54. Kh3
{[%clk 0:00:04.6]} 54... Rh6+ {[%clk 0:00:40.8]} 55. Kg2 {[%clk 0:00:04.7]}
55... Rh5 {[%clk 0:00:41.3]} 56. Kf2 {[%clk 0:00:04.4]} 56... Rh2+ {[%clk
0:00:40.9]} 57. Kg1 {[%clk 0:00:04.7]} 57... Ra2 {[%clk 0:00:41.4]} 58. Kf1
{[%clk 0:00:04.7]} 58... Rb2 {[%clk 0:00:39.5]} 59. Kg1 {[%clk 0:00:04.8]} 59...
Rc2 {[%clk 0:00:18.9]} 60. Kf1 {[%clk 0:00:05]} 60... Ra2 {[%clk 0:00:19.5]} 61.
Kg1 {[%clk 0:00:05.3]} 61... Kd3 {[%clk 0:00:19.9]} 62. Rxf5 {[%clk 0:00:04.8]}
62... e4 {[%clk 0:00:20.6]} 63. Rd5+ {[%clk 0:00:04.3]} 63... Kc4 {[%clk
0:00:19.3]} 64. Rd7 {[%clk 0:00:04.1]} 64... e3 {[%clk 0:00:19.4]} 65. Kf1
{[%clk 0:00:04.5]} 65... Rd2 {[%clk 0:00:17.6]} 66. Ke1 {[%clk 0:00:04.8]} 66...
Rxd7 {[%clk 0:00:17.4]} 0-1

[Event "*** SCC Grand Prix: Titled Tuesday Blitz"]
[Site "Chess.com"]
[Date "2020.08.25"]
[Round "1"]
[White "garicradomir"]
[Black "AnonymousIM2023"]
[Result "0-1"]
[WhiteElo "2269"]
[BlackElo "2596"]
[TimeControl "180+1"]
[EndTime "10:08:33 PDT"]
[Termination "AnonymousIM2023 won by resignation"]

1. e4 {[%clk 0:03:00.1]} 1... c5 {[%clk 0:02:58.8]} 2. Nf3 {[%clk 0:02:59.8]}
2... Nc6 {[%clk 0:02:59.3]} 3. Bb5 {[%clk 0:02:59]} 3... g6 {[%clk 0:02:57.3]}
4. Bxc6 {[%clk 0:02:57.8]} 4... dxc6 {[%clk 0:02:58.2]} 5. d3 {[%clk 0:02:56.4]}
5... Qc7 {[%clk 0:02:54.4]} 6. Nc3 {[%clk 0:02:55.3]} 6... e5 {[%clk 0:02:54.1]}
7. Be3 {[%clk 0:02:54.1]} 7... Nf6 {[%clk 0:02:51.7]} 8. Qd2 {[%clk 0:02:52.7]}
8... Nh5 {[%clk 0:02:51.5]} 9. h3 {[%clk 0:02:36.8]} 9... Be7 {[%clk 0:02:50.2]}
10. O-O-O {[%clk 0:02:26.7]} 10... Be6 {[%clk 0:02:48.2]} 11. Kb1 {[%clk
0:02:26]} 11... O-O-O {[%clk 0:02:43.7]} 12. a3 {[%clk 0:02:21.8]} 12... Kb8
{[%clk 0:02:42.4]} 13. g4 {[%clk 0:02:20.5]} 13... Nf4 {[%clk 0:02:39.7]} 14.
Nxe5 {[%clk 0:02:15.4]} 14... Ng2 {[%clk 0:02:23.5]} 15. Nf3 {[%clk 0:01:52.3]}
15... Nxe3 {[%clk 0:02:22.6]} 16. Qxe3 {[%clk 0:01:50]} 16... Rhe8 {[%clk
0:02:19.8]} 17. Nd2 {[%clk 0:01:47.6]} 17... Bd6 {[%clk 0:02:16.7]} 18. Ne2
{[%clk 0:01:45.1]} 18... Be5 {[%clk 0:02:10.1]} 19. f4 {[%clk 0:01:44.2]} 19...
Bh8 {[%clk 0:02:04.2]} 20. e5 {[%clk 0:01:44.1]} 20... f6 {[%clk 0:02:04]} 21.
d4 {[%clk 0:01:35.2]} 21... cxd4 {[%clk 0:02:02.1]} 22. Nxd4 {[%clk 0:01:36.1]}
22... fxe5 {[%clk 0:02:02.5]} 23. Nxe6 {[%clk 0:01:36.3]} 23... Rxe6 {[%clk
0:02:02.3]} 24. f5 {[%clk 0:01:36.5]} 24... gxf5 {[%clk 0:01:59.9]} 25. gxf5
{[%clk 0:01:26]} 25... Red6 {[%clk 0:02:00]} 26. Kc1 {[%clk 0:01:26.4]} 26... e4
{[%clk 0:01:57.8]} 27. Nc4 {[%clk 0:01:26.5]} 27... Rxd1+ {[%clk 0:01:35]} 28.
Rxd1 {[%clk 0:01:27.4]} 28... Rxd1+ {[%clk 0:01:35.3]} 29. Kxd1 {[%clk
0:01:27.3]} 29... b5 {[%clk 0:01:35.4]} 30. Nd2 {[%clk 0:01:20]} 30... Bxb2
{[%clk 0:01:33]} 31. Nxe4 {[%clk 0:01:19.4]} 31... Qd7+ {[%clk 0:01:17.7]} 32.
Qd3 {[%clk 0:00:54.1]} 32... Qxd3+ {[%clk 0:00:59.5]} 33. cxd3 {[%clk 0:00:55]}
33... Kc7 {[%clk 0:00:59.3]} 34. Ng5 {[%clk 0:00:49.2]} 34... Kd7 {[%clk
0:00:52.4]} 35. Nxh7 {[%clk 0:00:45.5]} 35... Bxa3 {[%clk 0:00:52.1]} 36. Nf6+
{[%clk 0:00:41.5]} 36... Ke7 {[%clk 0:00:50.1]} 37. Ne4 {[%clk 0:00:40.3]} 37...
a5 {[%clk 0:00:49.2]} 38. h4 {[%clk 0:00:37.4]} 38... a4 {[%clk 0:00:46.7]} 39.
h5 {[%clk 0:00:36.8]} 39... Kf7 {[%clk 0:00:38.2]} 40. h6 {[%clk 0:00:36.3]}
40... Bb2 {[%clk 0:00:37.6]} 41. Kc2 {[%clk 0:00:28.5]} 41... Bd4 {[%clk
0:00:36.7]} 42. h7 {[%clk 0:00:20.5]} 42... Kg7 {[%clk 0:00:35.9]} 43. Ng5
{[%clk 0:00:19.5]} 43... Bf6 {[%clk 0:00:34.9]} 44. Ne4 {[%clk 0:00:14.7]} 44...
Be5 {[%clk 0:00:33.7]} 45. Ng5 {[%clk 0:00:13.3]} 45... Bf6 {[%clk 0:00:24.7]}
46. Ne4 {[%clk 0:00:12.6]} 46... Bh4 {[%clk 0:00:25]} 47. Nc5 {[%clk 0:00:04.4]}
47... Kxh7 {[%clk 0:00:24.2]} 48. Ne6 {[%clk 0:00:04.5]} 48... Bf6 {[%clk
0:00:20.4]} 49. d4 {[%clk 0:00:01.6]} 49... Kh6 {[%clk 0:00:16.9]} 50. d5 {[%clk
0:00:02.5]} 50... cxd5 {[%clk 0:00:16.1]} 51. Nf4 {[%clk 0:00:03.4]} 51... d4
{[%clk 0:00:09.2]} 52. Nd5 {[%clk 0:00:04.3]} 52... Kg5 {[%clk 0:00:09.4]} 53.
Kd3 {[%clk 0:00:04.7]} 53... Kxf5 {[%clk 0:00:09.2]} 54. Nc7 {[%clk 0:00:04.4]}
54... b4 {[%clk 0:00:08.6]} 55. Na6 {[%clk 0:00:05.1]} 55... b3 {[%clk
0:00:08.7]} 56. Nc5 {[%clk 0:00:05]} 56... b2 {[%clk 0:00:08.9]} 57. Kc2 {[%clk
0:00:05.2]} 57... a3 {[%clk 0:00:08.4]} 58. Nb3 {[%clk 0:00:02.8]} 58... d3+
{[%clk 0:00:06.4]} 59. Kb1 {[%clk 0:00:02.3]} 59... Bc3 {[%clk 0:00:05.5]} 60.
Nd2 {[%clk 0:00:02.8]} 60... Bxd2 {[%clk 0:00:05]} 61. Ka2 {[%clk 0:00:03.5]}
61... Bc3 {[%clk 0:00:05.1]} 0-1